fUST/lending_fUST_20240805
["ID","MTS","AMOUNT","RATE_DAILY","PERIOD"]
[334247701,1722859650178,-301.27085185,0.00026604,2]
[334247702,1722859650200,-168.870157,0.00026619,2]
[334247703,1722859650222,-162.329732,0.00027884,2]
[334247704,1722859650243,-151.0,0.0003,120]
[334247705,1722859650265,-151.0,0.0003,120]
[334247706,1722859650287,-151.0,0.00032137,120]
[334247707,1722859650308,-839.11108209,0.00032254,2]
[334247708,1722859650328,-284.83809153,0.00032254,3]
[334247709,1722859650349,-2820.44108641,0.00032254,4]
[334247710,1722859746134,-2797.05656633,0.00032254,4]
[334247711,1722859746157,-254.63533274,0.00032254,4]
[334247712,1722859746179,-230.28851249,0.00032254,4]
[334247713,1722859746201,-4403.27975338,0.00032254,7]
[334247714,1722859746223,-45.74423506,0.00032254,30]
[334247715,1722859755110,-1699.36772011,0.00032254,30]
[334247716,1722859755131,-203.52509615,0.00032254,3]
[334247717,1722859755154,-151.0,0.00033014,120]
[334247718,1722859755176,-168.878791,0.00033682,2]
[334247719,1722859755198,-151.0,0.00034274,120]
[334247720,1722859755220,-151.0,0.00036027,120]
[334247721,1722859755241,-151.0,0.00036411,120]
[334247722,1722859764804,931.0,0.00025,60]
[334247723,1722859791026,4093.54805658,0.00036411,30]
[334247724,1722859791053,906.45194342,0.00036411,30]
[334247725,1722859820996,2933.96293289,0.00036411,30]
[334247726,1722859821019,2066.03706711,0.00036411,30]
[334247750,1722859832140,-150.0,0.00030775,14]
[334247751,1722859832149,-150.0,0.00030775,14]
[334247752,1722859832159,-200.0,0.00030775,14]
[334247753,1722859832168,-151.0,0.00038548,120]
[334247754,1722859832176,-151.0,0.00039041,120]
[334247755,1722859832185,-487.61613195,0.000398,120]
[334247756,1722859832196,-1620.61165827,0.000398,120]
[334247757,1722859832211,-4555.05652646,0.000398,120]
[334247761,1722859832243,-429.68895541,0.000398,120]
[334247826,1722859838061,-3132.17672791,0.000398,120]
[334247828,1722859838072,-150.112233,0.0004,2]
[334247830,1722859838082,-1000.0,0.0004,40]
[334247832,1722859838092,-200.0,0.0004,2]
[334247834,1722859838101,-10225.15,0.0004053,120]
[334247836,1722859838111,-151.0,0.00040685,120]
[334247838,1722859838120,-5112.574999,0.000407,120]
[334247840,1722859838130,-1000.0,0.00040994,120]
[334247842,1722859838139,-587.97284926,0.00040995,2]
[334247845,1722859838152,-266.4807172,0.00040995,2]
[334247847,1722859838169,-5788.0674958,0.00040995,2]
[334247872,1722859838581,-660.8876138,0.00040995,2]
[334247883,1722859841478,-344.39848212,0.00040995,2]
[334247884,1722859841597,-7827.18425283,0.00040995,2]
[334247885,1722859841607,-1000.0,0.00041,41]
[334247886,1722859841618,-10225.15,0.00041,120]
[334247887,1722859841627,-8135.76,0.00041085,3]
[334247888,1722859841638,-6779.8,0.00041085,3]
[334247889,1722859841647,-532.91041408,0.00041085,5]
[334247890,1722859841657,-500.0,0.00041094,31]
[334247891,1722859841673,-273.53482229,0.00041094,31]
[334247892,1722859841682,-500.0,0.00041094,31]
[334247893,1722859841691,-500.0,0.00041094,31]
[334247894,1722859841704,-500.0,0.00041094,31]
[334247895,1722859841713,-500.0,0.00041095,31]
[334247896,1722859841723,-500.0,0.00041095,31]
[334247897,1722859841736,-500.0,0.00041095,31]
[334247898,1722859841745,-504.33677994,0.00041095,31]
[334247899,1722859841757,-500.0,0.00041095,31]
[334247900,1722859841767,-500.0,0.00041095,31]
[334247901,1722859841776,-500.0,0.00041095,31]
[334247902,1722859841785,-500.0,0.00041095,31]
[334247903,1722859841797,-500.0,0.00041095,31]
[334247904,1722859841806,-500.0,0.00041095,31]
[334247905,1722859841817,-500.0,0.00041095,31]
[334247906,1722859841827,-500.0,0.00041095,31]
[334247907,1722859841836,-500.0,0.00041095,31]
[334247908,1722859841846,-500.0,0.00041095,31]
[334247909,1722859841855,-500.0,0.00041095,31]
[334247910,1722859841864,-500.0,0.00041095,31]
[334247911,1722859841874,-668.14,0.00041095,31]
[334247912,1722859841884,-450.7828307,0.00041095,31]
[334247913,1722859841893,-500.0,0.00041095,31]
[334247914,1722859841902,-500.0,0.00041095,31]
[334247915,1722859841918,-500.0,0.00041095,31]
[334247916,1722859841927,-500.0,0.00041095,31]
[334247917,1722859841936,-500.0,0.00041095,31]
[334247918,1722859841945,-500.0,0.00041095,31]
[334247919,1722859841954,-500.0,0.00041095,31]
[334247920,1722859841963,-500.0,0.00041095,31]
[334247921,1722859841973,-500.0,0.00041095,31]
[334247922,1722859841983,-500.0,0.00041095,31]
[334247923,1722859841992,-500.0,0.00041095,31]
[334247924,1722859842001,-531.81,0.00041095,31]
[334247925,1722859842011,-500.0,0.00041095,31]
[334247926,1722859842020,-500.0,0.00041095,31]
[334247927,1722859842030,-603.51,0.00041095,31]
[334247928,1722859842040,-504.08962127,0.00041095,31]
[334247929,1722859842049,-500.0,0.00041095,31]
[334247930,1722859842059,-500.0,0.00041095,31]
[334247931,1722859842070,-500.0,0.00041095,31]
[334247932,1722859842079,-500.0,0.00041095,31]
[334247933,1722859842091,-687.32,0.00041095,31]
[334247934,1722859842100,-500.0,0.00041095,31]
[334247935,1722859842109,-500.0,0.00041095,31]
[334247936,1722859842119,-500.0,0.00041095,31]
[334247937,1722859842128,-500.0,0.00041095,31]
[334247938,1722859842137,-569.34,0.00041095,31]
[334247939,1722859842147,-500.0,0.00041095,31]
[334247940,1722859842156,-500.0,0.00041095,31]
[334247941,1722859842174,-622.98,0.00041095,31]
[334247942,1722859842184,-500.0,0.00041095,31]
[334247943,1722859842193,-558.88,0.00041095,31]
[334247944,1722859842202,-729.33,0.00041095,31]
[334247945,1722859842212,-1001.57,0.00041095,31]
[334247946,1722859842221,-500.0,0.00041095,31]
[334247947,1722859842231,-221.60710906,0.00041095,31]
[334247948,1722859842239,-500.0,0.00041095,31]
[334247949,1722859842249,-500.0,0.00041095,31]
[334247950,1722859842258,-500.0,0.00041095,31]
[334247951,1722859842267,-229.36681314,0.00041095,31]
[334247952,1722859842277,-500.0,0.00041095,31]
[334247953,1722859842287,-500.0,0.00041095,31]
[334247954,1722859842296,-500.0,0.00041095,31]
[334247955,1722859842306,-500.0,0.00041095,31]
[334247956,1722859842316,-500.0,0.00041095,31]
[334247957,1722859842326,-500.0,0.00041095,31]
[334247958,1722859842336,-500.0,0.00041095,31]
[334247959,1722859842346,-500.0,0.00041095,31]
[334247960,1722859842355,-188.10191244,0.00041095,31]
[334247986,1722859843136,-427.67399048,0.00041095,31]
[334248022,1722859857753,147.6120917,0.00036411,4]
[334248023,1722859857776,107.02324104,0.00036411,4]
[334248024,1722859882573,169.221072,0.00035813,2]
[334248025,1722859936007,1852.68682348,0.00036411,30]
[334248027,1722860832138,-162.329732,0.00014247,2]
[334248028,1722860832159,-5.47343526,0.00019547,2]
[334248029,1722860841133,-366.94229279,0.00019547,2]
[334248030,1722860841154,-151.0,0.0003,120]
[334248031,1722860841176,-151.0,0.0003,120]
[334248032,1722860841199,-162.329732,0.00031781,2]
[334248033,1722860841221,-151.0,0.00032219,120]
[334248034,1722860841241,-216.0,0.00033,2]
[334248035,1722860841262,-165.0,0.00033,2]
[334248036,1722860841282,-216.0,0.00033151,2]
[334248037,1722860841303,-151.0,0.00033342,120]
[334248038,1722860841494,-151.0,0.00034438,120]
[334248039,1722860841515,-216.0,0.00034521,2]
[334248040,1722860841536,-165.0,0.00034521,2]
[334248041,1722860841557,-218.0,0.00036247,2]
[334248042,1722860841578,-272.0,0.00036409,2]
[334248043,1722860841599,-2198.84908117,0.00036411,4]
[334248044,1722860841622,-254.63533274,0.00036411,4]
[334248045,1722860841644,-977.51263722,0.00036411,30]
[334248046,1722860848119,-204.692148,0.00036411,30]
[334248049,1722860949107,-154.77980433,0.00021916,2]
[334248050,1722860949130,-168.878791,0.00034309,2]
[334248051,1722860949169,-3817.79521478,0.00036411,30]
[334248052,1722860949196,-304.51068684,0.00036411,4]
[334248053,1722860949222,-151.0,0.00036658,120]
[334248054,1722860949247,-151.0,0.00036685,120]
[334248055,1722861021080,5000.0,0.00036685,30]
[334248056,1722861023674,154.74467129,0.00025,2]
[334248158,1722861041358,-150.0,0.0003078,14]
[334248160,1722861041368,-150.0,0.0003078,14]
[334248162,1722861041378,-200.0,0.0003078,14]
[334248163,1722861041387,-17844.71311508,0.0003078,7]
[334248165,1722861041397,-659.42801001,0.0003078,120]
[334248166,1722861041406,-216.0,0.00038663,14]
[334248168,1722861041415,-151.0,0.00038877,120]
[334248169,1722861041425,-10225.15,0.000398,120]
[334248170,1722861041434,-766.17,0.0004,32]
[334248172,1722861041443,-200.0,0.0004,2]
[334248174,1722861041453,-151.0,0.00040027,120]
[334248175,1722861041463,-30531.10660428,0.00040528,2]
[334248176,1722861041472,-10225.15,0.0004053,120]
[334248178,1722861041481,-5112.574999,0.000407,120]
[334248179,1722861041491,-150.0,0.00040701,2]
[334248180,1722861041500,-5313.02250689,0.00040767,2]
[334248181,1722861041510,-640.32095285,0.0004089,11]
[334248182,1722861041519,-818.71044972,0.00040995,2]
[334248183,1722861041528,-1000.0,0.00041,41]
[334248184,1722861041537,-10225.15,0.00041,120]
[334248186,1722861041546,-216.0,0.00041079,14]
[334248189,1722861041556,-10417.92,0.0004108,3]
[334248191,1722861041565,-1762.66209012,0.00041085,5]
[334248194,1722861041575,-2846.98467738,0.0004109,5]
[334248196,1722861041586,-1568.5285,0.0004109,5]
[334248208,1722861041664,-5033.3,0.0004109,5]
[334248210,1722861041677,-1200.1068144,0.0004109,5]
[334248267,1722861043446,-578.47472148,0.000399,2]
[334248268,1722861043455,-2423.14289491,0.0004109,5]
[334248269,1722861043467,-5479.10826938,0.0004109,5]
[334248270,1722861043477,-642.09508752,0.00041094,31]
[334248271,1722861043488,-9669.84774221,0.00041095,15]
[334248272,1722861043506,-500.0,0.00041095,31]
[334248273,1722861043515,-500.0,0.00041095,31]
[334248274,1722861043526,-959.84,0.00041095,31]
[334248275,1722861043535,-202.67834673,0.00041095,31]
[334248276,1722861043866,-297.32165327,0.00041095,31]
[334248277,1722861043875,-146.24964673,0.00041095,31]
[334248278,1722861043887,-353.75035327,0.00041095,31]
[334248279,1722861043897,-500.0,0.00041095,31]
[334248280,1722861043907,-240.58954732,0.00041095,31]
[334248281,1722861043919,-274.90045268,0.00041095,31]
[334248282,1722861043929,-31.34753714,0.00041095,31]
[334248359,1722861047268,-164.63776319,0.0004107,3]
[334248360,1722861047280,-1085.04375266,0.0004107,3]
[334248371,1722861065798,881.47696693,0.00027396,2]
[334248374,1722861071232,3100.39922204,0.000355,30]
[334248375,1722861071254,1899.60077796,0.000355,30]
[334248386,1722861078195,912.4763458,0.00025,2]
[334248387,1722861081423,816.16582707,0.00021916,2]
[334248388,1722861092894,336.04335091,0.00021916,2]
[334248389,1722861093394,254.63533274,0.00025,2]
[334248390,1722861097727,269.63517677,0.00021916,2]
[334248391,1722861103985,259.6986795,0.00021916,2]
[334248392,1722861113364,302.84909228,0.00026564,2]
[334248393,1722861115570,5000.0,0.000355,30]
[334248394,1722861121057,164.0,0.00036,2]
[334248396,1722861124521,313.49955067,0.00026564,2]
[334248397,1722861148629,1529.83458805,0.00026564,2]
[334248542,1722862030117,-163.290343,0.00014247,2]
[334248543,1722862030147,-250.35702584,0.00021591,2]
[334248544,1722862030169,-151.0,0.0003,120]
[334248545,1722862030197,-163.290343,0.00031781,2]
[334248546,1722862030219,-169.221072,0.00033149,2]
[334248547,1722862030244,-348.836346,0.00033468,2]
[334248548,1722862030268,-151.0,0.00034,120]
[334248549,1722862030292,-225.9410907,0.00034031,2]
[334248550,1722862030314,-300.0,0.00035499,2]
[334248551,1722862030336,-5000.0,0.000355,30]
[334248552,1722862030358,-151.0,0.00038,120]
[334248553,1722862030389,-1000.0,0.00039,39]
[334248554,1722862030411,-349.20299426,0.000398,120]
[334248555,1722862032138,-8334.23777556,0.000398,120]
[334248556,1722862033099,-395.12614425,0.000398,120]
[334248559,1722862038145,-1146.58308593,0.000398,120]
[334248560,1722862038166,-200.0,0.0004,2]
[334248561,1722862038191,-1000.0,0.0004,40]
[334248562,1722862038215,-10225.15,0.0004053,120]
[334248563,1722862038237,-5112.574999,0.000407,120]
[334248564,1722862038259,-346.44969341,0.00040995,2]
[334248565,1722862042109,-250.35702584,0.00021589,2]
[334248566,1722862042133,-308.51866635,0.00040995,2]
[334248567,1722862042155,-10225.15,0.00041,120]
[334248568,1722862042177,-3002.514406,0.00041,120]
[334248569,1722862042200,-1000.0,0.00041,41]
[334248570,1722862042224,-4131.26901429,0.00041095,15]
[334248571,1722862048110,-550.31927967,0.00041085,3]
[334248572,1722862063998,240.7,0.00025,60]
[334248574,1722862147121,-151.0,0.0003,120]
[334248575,1722862147143,-151.0,0.0003,120]
[334248576,1722862147164,-912.4763458,0.00030303,2]
[334248577,1722862147185,-160.54991199,0.00030303,4]
[334248578,1722862147215,-216.90165335,0.00030303,2]
[334248579,1722862147238,-1686.70750744,0.00030303,4]
[334248580,1722862147259,-251.45786387,0.00032198,4]
[334248581,1722862147280,-151.0,0.00032411,120]
[334248582,1722862147302,-151.0,0.00034,120]
[334248583,1722862147327,-151.0,0.00034822,120]
[334248584,1722862147350,-5000.0,0.000355,30]
[334248585,1722862151133,-151.0,0.00037233,120]
[334248586,1722862155111,-151.0,0.00038,120]
[334248587,1722862182675,47.88832871,0.000355,30]
[334248588,1722862182701,3798.9798,0.000355,30]
[334248589,1722862182732,1153.13187129,0.000355,30]
[334248697,1722862233172,-150.0,0.00030764,14]
[334248699,1722862233183,-150.0,0.00030764,14]
[334248701,1722862233195,-200.0,0.00030764,14]
[334248703,1722862233205,-151.0,0.00039644,120]
[334248705,1722862233216,-200.0,0.0004,2]
[334248707,1722862233228,-496.52,0.0004015,31]
[334248709,1722862233240,-578.47472148,0.00040995,28]
[334248711,1722862233259,-429.63747368,0.00040995,2]
[334248713,1722862233271,-303.81615049,0.00041,120]
[334248757,1722862238788,-6564.18384951,0.00041,120]
[334248758,1722862238798,-912.27575185,0.00041,120]
[334248797,1722862242570,-1999.44632114,0.00041,120]
[334248798,1722862242582,-2006.1,0.00041,120]
[334248799,1722862242594,-1950.17792701,0.00041,120]
[334248800,1722862242604,-549.82207299,0.00041,41]
[334248801,1722862242617,-450.17792701,0.00041,41]
[334248802,1722862242627,-8381.6,0.00041085,3]
[334248803,1722862242638,-6984.66,0.00041085,3]
[334248804,1722862242647,-5053.71807027,0.00041085,5]
[334248805,1722862242657,-500.0,0.00041095,31]
[334248806,1722862242667,-500.0,0.00041095,31]
[334248807,1722862242677,-500.0,0.00041095,31]
[334248808,1722862242687,-500.0,0.00041095,31]
[334248809,1722862242696,-500.0,0.00041095,31]
[334248810,1722862242706,-164.50471586,0.00041095,31]
[334248811,1722862242717,-500.0,0.00041095,31]
[334248812,1722862242727,-500.0,0.00041095,31]
[334248813,1722862242736,-500.0,0.00041095,31]
[334248814,1722862242747,-500.0,0.00041095,31]
[334248815,1722862242757,-500.0,0.00041095,31]
[334248816,1722862242767,-500.0,0.00041095,31]
[334248817,1722862242777,-1955.05,0.00041095,31]
[334248818,1722862242787,-500.0,0.00041095,31]
[334248819,1722862242797,-290.60517253,0.00041095,7]
[334248820,1722862242807,-500.0,0.00041095,31]
[334248821,1722862242818,-471.39460102,0.00041095,31]
[334248822,1722862242828,-500.0,0.00041095,31]
[334248823,1722862242838,-1528.13,0.00041095,31]
[334248824,1722862242849,-500.0,0.00041095,31]
[334248825,1722862242859,-500.0,0.00041095,31]
[334248826,1722862242869,-500.0,0.00041095,31]
[334248827,1722862242880,-233.18478093,0.00041095,31]
[334248829,1722862242890,-500.0,0.00041095,31]
[334248831,1722862242901,-500.0,0.00041095,31]
[334248833,1722862242913,-500.0,0.00041095,31]
[334248835,1722862242923,-500.0,0.00041095,31]
[334248837,1722862242932,-868.0,0.00041095,31]
[334248840,1722862242942,-500.0,0.00041095,31]
[334248842,1722862242952,-608.87,0.00041095,31]
[334248843,1722862242962,-797.02,0.00041095,31]
[334248845,1722862242972,-500.0,0.00041095,31]
[334248847,1722862242982,-500.0,0.00041095,31]
[334248850,1722862242993,-500.0,0.00041095,31]
[334248852,1722862243004,-500.0,0.00041095,31]
[334248854,1722862243024,-154.27394969,0.00041095,31]
[334248896,1722862243774,-345.72605031,0.00041095,31]
[334248897,1722862243784,-566.64,0.00041095,31]
[334248898,1722862243794,-500.0,0.00041095,31]
[334248899,1722862243805,-500.0,0.00041095,31]
[334248900,1722862243814,-500.0,0.00041095,31]
[334248901,1722862243825,-677.86,0.00041095,31]
[334248902,1722862243835,-631.63,0.00041095,31]
[334248903,1722862243845,-500.0,0.00041095,31]
[334248904,1722862243855,-500.0,0.00041095,31]
[334248905,1722862243865,-500.0,0.00041095,31]
[334248906,1722862243875,-500.0,0.00041095,31]
[334248907,1722862243885,-739.46,0.00041095,31]
[334248908,1722862243895,-500.0,0.00041095,31]
[334248909,1722862243905,-500.0,0.00041095,31]
[334248910,1722862243915,-759.0973443,0.00041095,31]
[334248911,1722862243929,-104.8926557,0.00041095,31]
[334248912,1722862243939,-500.0,0.00041095,31]
[334248913,1722862243949,-500.0,0.00041095,31]
[334248914,1722862243959,-500.0,0.00041095,31]
[334248915,1722862243970,-500.0,0.00041095,31]
[334248916,1722862243981,-500.0,0.00041095,31]
[334248917,1722862243991,-906.57,0.00041095,31]
[334248919,1722862244002,-492.21705848,0.00041095,31]
[334248920,1722862244012,-500.0,0.00041095,31]
[334248921,1722862244023,-500.0,0.00041095,31]
[334248922,1722862244033,-500.0,0.00041095,31]
[334248923,1722862244043,-500.0,0.00041095,31]
[334248924,1722862244054,-822.06,0.00041095,31]
[334248925,1722862244064,-500.0,0.00041095,31]
[334248926,1722862244075,-486.38812362,0.00041095,31]
[334248927,1722862244086,-500.0,0.00041095,31]
[334248928,1722862244096,-500.0,0.00041095,31]
[334248929,1722862244107,-614.53,0.00041095,31]
[334248930,1722862244118,-500.0,0.00041095,31]
[334248931,1722862244128,-539.2,0.00041095,31]
[334248932,1722862244139,-363.07559159,0.00041095,31]
[334248933,1722862244151,-136.92440841,0.00041095,31]
[334248934,1722862244161,-603.67465389,0.00041095,31]
[334248935,1722862244171,-500.0,0.00041095,31]
[334248936,1722862244181,-500.0,0.00041095,31]
[334248937,1722862244191,-500.0,0.00041095,31]
[334248938,1722862244201,-500.0,0.00041095,31]
[334248939,1722862244211,-500.0,0.00041095,31]
[334248940,1722862244221,-860.75,0.00041095,31]
[334248941,1722862244231,-709.9,0.00041095,31]
[334248942,1722862244241,-253.0309377,0.00041095,31]
[334248943,1722862244254,-246.9690623,0.00041095,31]
[334248944,1722862244264,-622.41,0.00041095,31]
[334248945,1722862244278,-500.0,0.00041095,31]
[334248946,1722862244294,-556.88578657,0.00041095,31]
[334248947,1722862244304,-340.02257337,0.00041095,31]
[334248980,1722862247409,-1426.02641951,0.00041085,3]
[334248981,1722862247545,-6130.84358049,0.00041085,3]
[334248982,1722862247558,-278.43742663,0.00041095,31]
[334248983,1722862247567,-611.9,0.00041095,31]
[334248984,1722862247576,-716.64,0.00041095,31]
[334248985,1722862247586,-500.0,0.00041095,31]
[334248986,1722862247595,-500.0,0.00041095,31]
[334248987,1722862247605,-500.0,0.00041095,31]
[334248988,1722862247615,-500.0,0.00041095,31]
[334248989,1722862247624,-500.0,0.00041095,31]
[334248990,1722862247635,-1030.75,0.00041095,31]
[334248991,1722862247645,-673.38,0.00041095,31]
[334248992,1722862247656,-500.0,0.00041095,31]
[334248993,1722862247666,-500.0,0.00041095,31]
[334248994,1722862247676,-1127.98,0.00041095,31]
[334248995,1722862247686,-924.94,0.00041095,31]
[334248996,1722862247696,-500.0,0.00041095,31]
[334248997,1722862247706,-342.33704408,0.00041095,31]
[334248998,1722862247716,-500.0,0.00041095,31]
[334248999,1722862247726,-516.19,0.00041095,31]
[334249000,1722862247736,-500.0,0.00041095,31]
[334249001,1722862247745,-500.0,0.00041095,31]
[334249002,1722862247756,-500.0,0.00041095,31]
[334249003,1722862247766,-500.0,0.00041095,31]
[334249004,1722862247775,-714.68,0.00041095,31]
[334249005,1722862247791,-500.0,0.00041095,31]
[334249006,1722862247800,-1840.47,0.00041095,31]
[334249007,1722862247809,-500.0,0.00041095,31]
[334249008,1722862247818,-500.0,0.00041095,31]
[334249009,1722862247828,-500.0,0.00041095,31]
[334249010,1722862247837,-1403.95,0.00041095,31]
[334249011,1722862247847,-534.34194701,0.00041095,31]
[334249012,1722862247857,-1270.3,0.00041095,31]
[334249013,1722862247868,-500.0,0.00041095,31]
[334249014,1722862247878,-500.0,0.00041095,31]
[334249015,1722862247887,-221.60710906,0.00041095,31]
[334249016,1722862247897,-972.56,0.00041095,31]
[334249017,1722862247906,-500.0,0.00041095,31]
[334249018,1722862247916,-612.38,0.00041095,31]
[334249019,1722862247925,-991.7,0.00041095,31]
[334249020,1722862247935,-500.0,0.00041095,31]
[334249021,1722862247945,-500.0,0.00041095,31]
[334249022,1722862247956,-269.17806468,0.00041095,31]
[334249023,1722862247966,-500.0,0.00041095,31]
[334249024,1722862247975,-500.0,0.00041095,31]
[334249025,1722862247985,-378.89970757,0.00041095,31]
[334249026,1722862247994,-500.0,0.00041095,31]
[334249027,1722862248004,-700.32,0.00041095,31]
[334249028,1722862248015,-7422.96,0.00041095,31]
[334249029,1722862248024,-500.0,0.00041095,31]
[334249030,1722862248044,-500.0,0.00041095,31]
[334249031,1722862248053,-500.0,0.00041095,31]
[334249032,1722862248063,-500.0,0.00041095,2]
[334249033,1722862248072,-6320.04,0.00041095,31]
[334249034,1722862248082,-788.47,0.00041095,31]
[334249035,1722862248092,-564.5,0.00041095,31]
[334249036,1722862248101,-3731.64,0.00041095,31]
[334249037,1722862248111,-500.0,0.00041095,31]
[334249038,1722862248120,-500.0,0.00041095,31]
[334249039,1722862248129,-1797.27,0.00041095,31]
[334249040,1722862248139,-1083.96,0.00041095,31]
[334249041,1722862248148,-401.70453898,0.00041095,31]
[334249042,1722862248158,-473.95801233,0.00041095,31]
[334249043,1722862248168,-500.0,0.00041095,31]
[334249044,1722862248178,-500.0,0.00041095,31]
[334249045,1722862248188,-2270.13,0.00041095,21]
[334249046,1722862248198,-611.19,0.00041095,31]
[334249047,1722862248210,-698.98,0.00041095,31]
[334249048,1722862248224,-1207.07,0.00041095,31]
[334249049,1722862248239,-509.41,0.00041095,31]
[334249050,1722862248251,-500.0,0.00041095,31]
[334249051,1722862248261,-834.82,0.00041095,31]
[334249052,1722862248271,-616.47,0.00041095,31]
[334249053,1722862248288,-500.0,0.00041095,31]
[334249054,1722862248299,-500.0,0.00041095,31]
[334249055,1722862248309,-1477.15,0.00041095,31]
[334249056,1722862248319,-629.33,0.00041095,31]
[334249057,1722862248331,-500.0,0.00041095,31]
[334249058,1722862248343,-958.41,0.00041095,31]
[334249059,1722862248357,-944.35,0.00041095,31]
[334249060,1722862248367,-719.5,0.00041095,31]
[334249061,1722862248377,-500.0,0.00041095,31]
[334249062,1722862248389,-500.0,0.00041095,31]
[334249063,1722862248399,-500.0,0.00041095,31]
[334249064,1722862248408,-500.0,0.00041095,31]
[334249065,1722862248418,-500.0,0.00041095,31]
[334249066,1722862248428,-597.62,0.00041095,31]
[334249067,1722862248439,-500.0,0.00041095,31]
[334249068,1722862248449,-500.0,0.00041095,31]
[334249069,1722862248459,-500.0,0.00041095,31]
[334249070,1722862248469,-500.0,0.00041095,31]
[334249071,1722862248479,-371.95020409,0.00041095,31]
[334249072,1722862248489,-2535.78,0.00041095,31]
[334249073,1722862248498,-2574.3,0.00041095,31]
[334249074,1722862248507,-500.0,0.00041095,31]
[334249075,1722862248517,-500.0,0.00041095,31]
[334249076,1722862248526,-223.60005718,0.00041095,31]
[334249077,1722862248546,-500.0,0.00041095,31]
[334249078,1722862248556,-2002.8,0.00041095,31]
[334249079,1722862248566,-500.0,0.00041095,31]
[334249080,1722862248576,-500.0,0.00041095,31]
[334249081,1722862248585,-500.0,0.00041095,31]
[334249082,1722862248595,-541.21,0.00041095,31]
[334249083,1722862248605,-500.0,0.00041095,31]
[334249084,1722862248614,-585.17,0.00041095,31]
[334249085,1722862248624,-500.0,0.00041095,31]
[334249086,1722862248634,-1202.77,0.00041095,31]
[334249087,1722862248645,-500.0,0.00041095,31]
[334249088,1722862248655,-751.14,0.00041095,31]
[334249089,1722862248664,-1488.17,0.00041095,31]
[334249090,1722862248674,-500.0,0.00041095,31]
[334249091,1722862248683,-500.0,0.00041095,31]
[334249092,1722862248697,-500.0,0.00041095,31]
[334249093,1722862248710,-1563.91,0.00041095,31]
[334249094,1722862248721,-500.0,0.00041095,31]
[334249095,1722862248730,-500.0,0.00041095,31]
[334249096,1722862248740,-500.0,0.00041095,31]
[334249097,1722862248749,-500.0,0.00041095,31]
[334249098,1722862248759,-500.0,0.00041095,31]
[334249099,1722862248768,-2146.22,0.00041095,31]
[334249100,1722862248782,-769.33,0.00041095,31]
[334249101,1722862248797,-500.0,0.00041095,31]
[334249102,1722862248806,-1119.28,0.00041095,31]
[334249103,1722862248815,-500.0,0.00041095,31]
[334249104,1722862248824,-500.0,0.00041095,31]
[334249105,1722862248835,-3646.19,0.00041095,31]
[334249106,1722862248844,-1237.0,0.00041095,31]
[334249107,1722862248853,-674.81,0.00041095,31]
[334249108,1722862248863,-962.25,0.00041095,31]
[334249109,1722862248873,-589.92,0.00041095,31]
[334249110,1722862248882,-517.67,0.00041095,31]
[334249111,1722862248891,-500.0,0.00041095,31]